bitfinex/quotes_ETHUSD_20220109
["timestamp","ask_amount","ask_price","bid_price","bid_amount"]
[1641741524564,0.81229,3079.9,3079.3,1.30266334]
[1641741524964,0.00341055,3079.8,3079.3,1.30266334]
[1641741525414,0.00284212,3079.7,3079.3,1.30266334]
[1641741525614,0.00284212,3079.7,3079.6,1.38351621]
[1641741525816,3.25006838,3079.9,3079.1,3.54397733]
[1641741526014,3.79988724,3079.8,3079.1,3.54397733]
[1641741526213,0.81253,3079.5,3079.1,3.54397733]
[1641741526612,0.00113685,3079.4,3079.1,3.54397733]
[1641741526811,0.00113685,3079.4,3079.2,1.28829131]
[1641741527220,0.00113685,3079.4,3079.1,3.54397733]
[1641741527612,0.30113685,3079.4,3079.1,3.54397733]
[1641741527813,0.00113685,3079.4,3079.1,3.54397733]
[1641741528613,2.11275671,3079.3,3079.2,1.20722797]
[1641741529665,1.30032671,3079.3,3079.2,7.80722797]
[1641741530065,1.30032671,3079.3,3079.2,1.20722797]
[1641741533815,1.60032671,3079.3,3079.1,3.54397733]
[1641741534015,2.71285661,3079.3,3079.1,3.54397733]
[1641741534212,2.71285661,3079.3,3079.0,1.0]
[1641741534213,13.14,3079.2,3079.0,1.0]
[1641741534414,14.44,3079.2,3079.0,1.0]
[1641741534611,14.23027422,3079.1,3079.0,1.0]
[1641741534814,14.69827422,3079.1,3079.0,1.0]
[1641741535010,15.99827422,3079.1,3079.0,1.00113684]
[1641741535414,8.8,3079.0,3078.6,9.11468407]
[1641741535612,0.468,3078.9,3078.6,9.11468407]
[1641741535813,1.6253399,3078.8,3078.7,0.00170527]
[1641741536012,2.0933399,3078.8,3078.7,0.00170527]
[1641741536212,2.17361412,3078.8,3078.7,0.00170527]
[1641741536670,1.28067,3078.8,3078.7,0.00170527]
[1641741537466,0.468,3078.8,3078.7,5.20170527]
[1641741537669,2.43744,3079.3,3078.7,5.20170527]
[1641741537670,1.62494,3079.3,3078.7,5.20170527]
[1641741537868,0.47688664,3079.4,3078.7,5.20170527]
[1641741538067,0.00113685,3079.2,3078.8,0.00113685]
[1641741538267,0.00170527,3079.3,3079.1,11.364937]
[1641741538667,2.10643354,3079.6,3079.1,11.364937]
[1641741538668,0.00113684,3079.2,3079.1,11.364937]
[1641741538870,0.00113684,3079.2,3079.1,10.06422974]
[1641741539269,1.65388705,3079.9,3079.2,15.2]
[1641741539472,1.65388705,3079.9,3079.8,17.21141631]
[1641741539668,0.4755741,3080.6,3080.0,12.85]
[1641741539967,0.00738951,3080.5,3080.0,12.85]
[1641741540170,0.00738951,3080.5,3079.8,2.36141631]
[1641741540422,1.62406,3080.9,3079.8,2.36141631]
[1641741540423,0.00682109,3080.4,3079.8,2.36141631]
[1641741540820,0.00625266,3080.3,3079.8,2.36141631]
[1641741541120,2.89846028,3080.9,3079.8,2.36141631]
[1641741541121,0.00568424,3080.2,3079.8,1.20232861]
[1641741541520,0.00511582,3080.1,3079.8,1.20232861]
[1641741541921,8.24748,3082.5,3079.8,1.20232861]
[1641741541922,4.739e-05,3080.0,3079.8,1.20232861]
[1641741542120,4.739e-05,3080.0,3079.7,0.81195]
[1641741542121,4.739e-05,3080.0,3079.9,15.668]
[1641741542325,0.00857374,3081.5,3079.9,38.2821173]
[1641741542520,0.00857374,3081.5,3079.9,19.3721173]
[1641741542719,0.00800532,3081.4,3079.9,19.3721173]
[1641741542921,0.00800532,3081.4,3080.5,0.81175]
[1641741543120,2.43532,3081.9,3080.5,0.81175]
[1641741543121,0.0074369,3081.3,3080.7,1.23637121]
[1641741543320,0.0074369,3081.3,3081.0,1.01322913]
[1641741543520,1.62352,3081.9,3081.0,1.01322913]
[1641741543521,0.00686847,3081.2,3081.0,1.01322913]
[1641741543921,0.00630005,3081.1,3081.0,1.01322913]
[1641741544470,0.00630005,3081.1,3081.0,14.91317699]
[1641741544664,6.16,3082.1,3081.3,1.22297126]
[1641741544869,0.81169,3081.9,3081.1,16.1771]
[1641741545368,0.81169,3081.9,3081.1,0.9771]
[1641741545767,0.00511581,3082.0,3081.7,1.51285676]
[1641741546168,0.00454739,3081.9,3081.7,1.51285676]
[1641741546566,0.00397896,3081.8,3081.7,1.51285676]
[1641741546767,0.00397896,3081.8,3081.2,1.28951111]
[1641741546970,0.00397896,3081.8,3081.1,0.9771]
[1641741547167,0.00341054,3081.7,3080.8,1.2013]
[1641741547568,0.00284212,3081.6,3080.9,0.81276685]
[1641741547769,0.00284212,3081.6,3080.9,1.61976685]
[1641741548019,0.00227369,3081.5,3081.4,16.33016152]
[1641741549022,0.00227369,3081.5,3081.4,17.84541463]
[1641741550424,6.17212177,3083.4,3083.1,1.29331386]
[1641741550621,6.17212177,3083.4,3083.1,1.24331386]
[1641741550822,6.16,3083.4,3083.1,1.24331386]
[1641741551222,6.16,3083.4,3083.2,13.29849128]
[1641741551223,1.94890618,3083.3,3083.2,13.29849128]
[1641741551426,0.16805947,3083.7,3083.3,9.75]
[1641741551675,6.91,3083.8,3083.3,1.07605591]
[1641741551868,7.0998482,3084.5,3083.3,1.07605591]
[1641741552071,0.01250532,3083.7,3083.3,1.07605591]
[1641741552273,0.01250532,3083.7,3083.1,1.24331386]
[1641741552470,0.0119369,3083.6,3083.1,1.24331386]
[1641741552870,0.01136847,3083.5,3083.1,1.24331386]
[1641741553271,0.01080005,3083.4,3083.1,1.24331386]
[1641741553477,0.01080005,3083.4,3083.0,5.9885]
[1641741553775,1.63304163,3083.3,3083.0,5.9885]
[1641741553968,0.012209,3083.1,3082.3,3.71421347]
[1641741554171,0.9596632,3083.6,3082.4,8.65]
[1641741554373,0.9596632,3083.6,3082.4,2.48748092]
[1641741554570,0.0022737,3083.6,3083.3,0.0008]
[1641741554774,1.62275,3083.4,3083.3,0.0008]
[1641741555170,0.00113685,3083.4,3083.3,0.0008]
[1641741555714,7.40960628,3083.7,3083.4,1.38729551]
[1641741556113,0.00113685,3083.6,3083.4,1.38729551]
[1641741556314,5.98624313,3083.7,3083.5,15.58748092]
[1641741556518,2.88799928,3084.5,3084.1,1.35082445]
[1641741557316,2.88799928,3084.5,3084.2,1.16172472]
[1641741557317,0.9398482,3084.5,3084.2,1.16172472]
[1641741557515,0.9398482,3084.5,3084.2,1.99242472]
[1641741557718,0.9398482,3084.5,3084.2,4.47990564]
[1641741557919,0.9398482,3084.5,3084.2,1.99242472]
[1641741559179,6.16,3085.3,3084.6,1.34514136]
[1641741559377,6.11,3085.3,3084.6,1.34514136]
[1641741559574,0.00909477,3085.2,3084.6,1.34514136]
[1641741559977,6.11,3085.3,3084.6,2.41697653]
[1641741559978,0.00852635,3085.1,3084.6,2.41697653]
[1641741560179,0.00852635,3085.1,3084.7,1.04661806]
[1641741560377,0.012495,3086.6,3084.8,2.91051584]
[1641741560378,0.00795793,3085.0,3084.8,2.91051584]
[1641741560575,0.00795793,3085.0,3084.9,29.5498]
[1641741560774,3.8236,3086.5,3084.9,29.5498]
[1641741560974,3.8236,3086.5,3085.9,1.10364649]
[1641741561175,0.01591585,3086.4,3085.9,1.10364649]
[1641741561373,0.01591585,3086.4,3086.0,1.46924224]
[1641741561576,0.01534743,3086.3,3086.0,1.46924224]
[1641741561775,0.01534743,3086.3,3086.1,2.45443588]
[1641741561975,0.01477901,3086.2,3086.1,2.45443588]
[1641741562274,0.01477901,3086.2,3086.1,11.70443588]
[1641741562678,0.01477901,3086.2,3086.0,1.46924224]
[1641741563112,0.01421058,3086.1,3086.0,1.46924224]
[1641741563514,0.01421058,3086.1,3086.0,8.91322528]
[1641741563913,1.94685794,3086.6,3085.5,1.1522]
[1641741564116,0.01266382,3086.5,3085.1,3.71322502]
[1641741564315,0.01493752,3086.5,3085.6,0.00284211]
[1641741564516,0.01493752,3086.5,3085.2,0.00511581]
[1641741564720,0.34636826,3086.4,3085.2,0.00511581]
[1641741565118,0.81074,3085.9,3085.3,1.47789722]
[1641741565518,0.81074,3085.9,3085.4,0.00397896]
[1641741566118,1.29104421,3085.7,3085.4,0.00397896]
[1641741566521,2.91274421,3085.7,3085.4,0.00397896]
[1641741566773,2.91274421,3085.7,3085.0,0.00625265]
[1641741566971,1.0,3085.6,3085.0,0.00625265]
[1641741567169,1.0,3085.6,3085.2,1.41972807]
[1641741567370,1.0,3086.0,3085.2,2.64605732]
[1641741567571,3.8035,3086.1,3085.3,0.00454738]
[1641741567773,0.00113685,3086.3,3085.7,1.17952265]
[1641741567972,0.00113685,3086.3,3085.3,0.00454738]
[1641741568170,0.00113685,3086.3,3085.8,0.00170527]
[1641741568371,0.00113685,3086.3,3085.2,1.41972807]
[1641741568372,0.00113685,3086.3,3085.3,0.00454738]
[1641741568769,0.00113685,3086.3,3086.2,1.37073392]
[1641741568973,0.00113685,3086.3,3086.2,2.79224444]
[1641741569172,0.00113685,3086.3,3086.2,12.54224444]
[1641741570173,0.00113685,3086.3,3086.2,13.48664444]
[1641741570437,1.29722718,3086.6,3086.3,11.05]
[1641741570831,0.00113685,3086.5,3086.2,2.79224444]
[1641741571734,0.00113685,3086.5,3086.3,2.76167003]
[1641741572132,0.00113685,3086.5,3086.3,5.30817779]
[1641741572332,0.00113685,3086.5,3086.4,2.44041189]
[1641741572532,0.00113685,3086.5,3086.2,2.79224444]
[1641741573534,0.00113685,3086.5,3086.3,2.46077786]
[1641741573731,0.00113685,3086.5,3086.2,2.79224444]
[1641741574366,0.00113685,3086.5,3086.2,1.37073392]
[1641741574567,0.00113685,3086.5,3085.5,2.7683804]
[1641741574768,0.00113685,3086.5,3085.4,6.86548377]
[1641741574769,0.00113685,3086.5,3085.4,6.853]
[1641741574969,1.389,3086.9,3085.6,0.00397896]
[1641741574970,1.04672732,3086.9,3085.6,0.00397896]
[1641741575172,1.04672732,3086.9,3085.9,0.01291179]
[1641741575173,0.04672732,3086.9,3085.9,0.01291179]
[1641741575468,0.00113684,3086.7,3086.0,1.22070232]
[1641741575674,1.2342397,3086.7,3086.3,1.34793226]
[1641741575969,1.2342397,3086.7,3086.1,0.0022737]
[1641741576168,2.3448354,3086.7,3086.1,0.0022737]
[1641741576368,3.0338354,3086.7,3085.5,2.47076086]
[1641741576571,1.0,3086.6,3085.5,0.00568424]
[1641741576769,0.81061,3086.1,3085.6,0.00511581]
[1641741576970,5.56123496,3086.0,3085.5,0.00568424]
[1641741577169,5.56123496,3086.0,3085.3,1.39474036]
[1641741577170,0.8108327,3085.9,3085.3,1.39474036]
[1641741577368,2.1998327,3085.9,3085.3,1.39474036]
[1641741577570,2.4998327,3085.9,3085.4,0.00625266]
[1641741578019,2.7998327,3085.9,3085.0,0.00852635]
[1641741578418,2.7998327,3085.9,3085.4,1.33853519]
[1641741578618,3.6107227,3085.9,3085.4,1.33853519]
[1641741578817,3.6107227,3085.9,3085.5,0.00568424]
[1641741579218,3.6107227,3085.9,3085.0,0.00852635]
[1641741579219,0.81087,3085.7,3085.0,0.00852635]
[1641741579420,35.81950752,3085.4,3085.0,0.50852635]
[1641741579719,34.81950752,3085.4,3085.1,0.00795793]
[1641741580319,0.81087,3085.3,3085.1,0.00795793]
[1641741580728,15.15,3085.1,3084.4,4.14403712]
[1641741580923,0.389,3085.0,3084.4,4.14403712]
[1641741581119,0.389,3085.0,3084.2,1.22673255]
[1641741581120,0.82391318,3084.8,3084.5,0.00341054]
[1641741581320,0.82391318,3084.8,3084.0,3.17405504]
[1641741581321,0.389,3084.7,3084.0,3.17405504]
[1641741581523,0.81111,3084.4,3084.3,0.00454739]
[1641741581773,0.00113684,3084.7,3084.3,0.00454739]
[1641741581975,0.00113684,3084.7,3084.4,1.05639165]
[1641741582768,0.81094,3084.9,3084.5,1.28008645]
[1641741582968,3.2439871,3085.5,3084.6,2.4219322]
[1641741582969,1.29775326,3085.4,3084.6,2.4219322]
[1641741583167,1.29775326,3085.4,3085.1,1.17743112]
[1641741583569,1.29775326,3085.4,3085.0,0.0008]
[1641741583768,1.29775326,3085.4,3085.1,1.11133851]
[1641741583970,1.29775326,3085.4,3085.2,2.76323495]
[1641741584570,1.62240213,3085.6,3085.2,2.76323495]
[1641741584970,0.81088,3085.5,3085.2,2.76323495]
[1641741585169,0.81088,3085.5,3085.3,0.00170527]
[1641741585413,47.73279001,3085.5,3085.3,0.00170527]
[1641741585613,45.94472981,3085.5,3085.3,0.00170527]
[1641741585813,45.08570597,3085.5,3085.3,0.00170527]
[1641741586017,47.00751207,3085.5,3085.3,0.00170527]
[1641741586213,1.0,3085.4,3085.3,0.00170527]
[1641741587415,1.0,3085.4,3085.2,1.46701852]
[1641741587814,1.46701852,3085.2,3084.0,11.6021]
[1641741588017,1.11108,3084.8,3084.5,1.61040067]
[1641741588216,0.389,3084.7,3084.5,1.61040067]
[1641741588417,11.2,3084.6,3084.3,0.0008]
[1641741588618,1.389,3084.5,3084.3,0.0008]
[1641741588816,1.989,3084.5,3084.3,0.0008]
[1641741589015,0.989,3084.5,3084.3,0.0008]
[1641741589271,2.50015,3084.5,3084.3,0.0008]
[1641741589471,3.6336192,3084.5,3084.2,1.24719812]
[1641741589669,1.20015,3084.5,3084.2,1.24719812]
[1641741590468,0.00113685,3084.6,3084.2,1.24719812]
[1641741591070,0.81099,3084.5,3084.2,1.24719812]
[1641741592571,0.00113685,3084.6,3084.2,1.24719812]
[1641741593016,0.00113685,3084.6,3084.5,8.5085433]
[1641741593416,0.00113685,3084.6,3084.3,2.41601903]
[1641741594618,0.00113685,3084.6,3084.4,1.12139871]
[1641741594824,1.97793129,3085.2,3084.5,5.05]
[1641741595018,1.97793129,3085.2,3084.4,1.12139871]
[1641741595019,0.389,3085.1,3084.4,1.12139871]
[1641741595225,0.00170527,3084.9,3084.4,1.12139871]
[1641741595421,0.00170527,3084.9,3084.4,3.53741774]
[1641741595621,0.389,3085.1,3084.4,3.53741774]
[1641741595820,0.389,3085.1,3084.5,0.00170527]
[1641741596022,0.00113685,3085.0,3084.6,1.22791661]
[1641741596222,2.33196436,3085.3,3084.6,1.22791661]
[1641741596423,2.33196436,3085.3,3084.7,0.00170527]
[1641741596683,0.81085,3085.1,3084.7,0.00170527]
[1641741596868,1.19985,3085.1,3084.7,0.00170527]
[1641741597068,1.62195,3085.0,3084.7,0.00170527]
[1641741597469,2.01095,3085.0,3084.8,1.30571606]
[1641741598070,2.82193,3085.0,3084.8,1.30571606]
[1641741598270,5.44564372,3085.0,3084.7,0.00170527]
[1641741598473,2.11102,3084.9,3084.7,0.00170527]
[1641741598670,1.29632173,3084.7,3084.5,0.0008]
[1641741598871,1.68532173,3084.7,3084.5,0.0008]
[1641741599273,1.68532173,3084.7,3084.2,1.22791661]
[1641741599274,16.8553112,3084.6,3084.2,1.22791661]
[1641741599471,1.6226764,3084.4,3083.9,1.63881567]
[1641741599671,1.6226764,3084.4,3083.0,4.13266191]
[1641741599672,16.1196,3083.8,3083.0,4.13266191]
[1641741599874,0.66873406,3083.6,3083.3,2.46084891]
[1641741600072,15.01873406,3083.2,3083.1,3.29022666]
[1641741600272,2.35773406,3083.2,3083.1,3.29022666]
[1641741600514,3.46933406,3083.2,3083.1,0.00909478]
[1641741600816,2.46933406,3083.2,3083.0,0.0096632]
[1641741601014,6.66873406,3083.1,3083.0,0.0096632]
[1641741601215,1.05773406,3083.1,3083.0,0.0096632]
[1641741601515,0.66873406,3083.1,3083.0,0.0096632]
[1641741603217,1.48733531,3083.9,3083.8,1.30108759]
[1641741603419,1.09833531,3083.9,3083.8,1.30108759]
[1641741603618,1.09833531,3083.9,3083.8,1.30620341]
[1641741603816,1.09833531,3083.9,3083.8,9.95620341]
[1641741604017,1.09833531,3083.9,3083.8,11.13937206]
[1641741604676,1.09833531,3083.9,3083.8,9.84058642]
[1641741605067,1.09833531,3083.9,3083.8,1.19058642]
[1641741605470,1.09833531,3083.9,3083.8,1.18828447]
[1641741606270,0.81102,3084.4,3084.3,1.84929351]
[1641741606672,0.81102,3084.4,3084.3,1.85156721]
[1641741607173,0.00766356,3084.5,3084.3,4.22509371]
[1641741607374,0.00766356,3084.5,3084.4,14.47424188]
[1641741607575,6.356e-05,3084.5,3084.4,14.47594716]
[1641741607775,2.00113684,3085.2,3084.4,17.21212206]
[1641741608019,1.78493684,3085.2,3085.1,7.84691721]
[1641741608318,1.78493684,3085.2,3085.1,2.00736731]
[1641741609320,1.78493684,3085.2,3085.1,1.20766716]
[1641741610125,1.78493684,3085.2,3084.8,1.42104977]
[1641741610521,0.00113685,3085.1,3084.8,1.42104977]
[1641741612969,0.00113685,3085.1,3084.8,2.57783418]
[1641741613868,0.76183685,3085.5,3084.8,2.57783418]
[1641741614070,0.389,3085.9,3085.3,1.09895142]
[1641741614270,0.00170527,3085.4,3085.3,2.58878796]
[1641741614470,0.00170527,3085.4,3085.3,3.91495402]
[1641741614471,5.27e-06,3085.4,3085.3,3.91495402]
[1641741614673,1.3288482,3087.3,3085.2,0.52632338]
[1641741614674,0.00625266,3086.2,3085.2,0.52632338]
[1641741615070,0.00398423,3086.1,3085.4,1.62078]
[1641741615521,0.00341581,3086.0,3085.9,10.83349842]
[1641741616317,0.00341581,3086.0,3085.9,1.18349842]
[1641741616518,0.00341581,3086.0,3085.5,1.41963482]
[1641741616917,0.00284739,3085.9,3085.5,1.41963482]
[1641741617319,0.00227896,3085.8,3085.5,1.41963482]
[1641741617716,0.8106499,3086.0,3085.5,1.41963482]
[1641741617717,0.00171054,3085.7,3085.5,1.41963482]
[1641741618118,0.00114212,3085.6,3085.5,1.41963482]
[1641741619765,1.43309212,3086.0,3085.5,1.41963482]
[1641741620167,0.00113684,3085.8,3085.5,1.41963482]
[1641741620566,0.00113684,3085.8,3085.5,2.62324615]
[1641741620765,1.29872171,3085.8,3085.5,2.62324615]
[1641741621566,1.29872171,3085.8,3085.6,2.31726286]
[1641741622470,1.29872171,3085.8,3085.6,2.26726286]
[1641741622666,1.29872171,3085.8,3085.6,3.19286286]
[1641741622925,1.62198109,3086.4,3085.8,11.95]
[1641741623224,0.00284212,3086.3,3085.8,11.95]
[1641741623424,0.00284212,3086.3,3085.9,2.3054726]
[1641741623624,0.0022737,3086.2,3086.0,1.24053638]
[1641741624023,0.00170527,3086.1,3086.0,2.24053638]
[1641741625824,0.00170527,3086.1,3086.0,1.0]
[1641741627072,0.00170527,3086.1,3086.0,9.78957119]
[1641741627470,0.00170527,3086.1,3086.0,7.4]
[1641741628070,0.00170527,3086.1,3086.0,8.44924571]
[1641741629270,0.00170527,3086.1,3085.8,1.25048953]
[1641741629672,0.00113685,3086.0,3085.8,1.25048953]
[1641741630924,0.04709534,3085.8,3085.7,1.5358485]
[1641741631121,0.04709534,3085.8,3085.1,1.2067]
[1641741631522,0.04709534,3085.8,3085.2,0.00341054]
[1641741632121,0.04709534,3085.8,3085.2,1.19699489]
[1641741632320,0.85777934,3085.8,3085.2,1.19699489]
[1641741632522,0.81069,3085.7,3085.3,0.00284211]
[1641741632925,1.62142,3085.7,3085.3,0.00284211]
[1641741633123,0.81069,3085.7,3085.3,0.00284211]
[1641741633326,0.81069,3085.7,3085.2,0.00341054]
[1641741633327,0.389,3085.6,3085.2,0.00341054]
[1641741633522,0.3,3085.5,3085.2,0.00341054]
[1641741633723,0.3,3085.5,3084.7,0.00625265]
[1641741634023,0.3,3085.5,3084.5,0.0073895]
[1641741634024,1.4038659,3085.0,3084.5,0.0073895]
[1641741634270,0.81106,3084.8,3084.5,0.0073895]
[1641741634471,0.467,3084.8,3084.5,0.0073895]
[1641741634870,1.278,3084.8,3084.4,0.00795793]
[1641741635070,1.08902,3084.8,3084.4,0.00795793]
[1641741635971,1.6219942,3084.7,3084.4,0.00795793]
[1641741636172,0.2202277,3085.2,3085.1,5.42931406]
[1641741636372,7.3597667,3086.3,3086.0,0.84701874]
[1641741636580,3.84795252,3086.9,3086.1,0.83220036]
[1641741636773,16.42156,3087.6,3086.0,0.84701874]
[1641741636774,10.31182323,3087.8,3086.0,0.84701874]
[1641741636974,0.81600001,3088.9,3087.7,16.13692091]
[1641741636975,6.7002722,3088.0,3087.7,16.13692091]
[1641741637172,5.3576722,3088.0,3087.7,16.13692091]
[1641741637370,4.0150722,3088.0,3087.7,7.37047198]
[1641741638129,2.6726722,3088.0,3087.7,7.37047198]
[1641741638929,0.01222314,3088.4,3088.3,1.60291502]
[1641741639332,0.03,3089.2,3088.3,1.60291502]
[1641741640535,0.03,3089.9,3088.3,1.60291502]
[1641741640931,0.03,3089.9,3088.9,2.94337886]
[1641741641132,18.91,3090.3,3089.1,4.36534141]
[1641741641133,17.9594482,3090.3,3089.1,4.36534141]
[1641741641332,2.84003115,3092.4,3089.1,2.71229943]
[1641741641333,0.01241183,3091.3,3089.1,2.71229943]
[1641741641787,7.4,3091.2,3090.2,0.80926]
[1641741641978,7.4,3091.2,3090.1,2.1535884]
[1641741641979,7.4,3091.2,3090.1,1.17692]
[1641741642179,0.0289896,3091.1,3090.3,1.53502792]
[1641741642574,0.02842117,3091.0,3089.8,5.9091]
[1641741642775,1.27566746,3090.7,3089.8,5.9091]
[1641741642975,0.02785275,3090.9,3089.8,7.52784]
[1641741643174,0.02614748,3090.6,3090.1,0.80934]
[1641741643379,0.02728433,3090.8,3090.1,0.80934]
[1641741643677,0.0267159,3090.7,3090.1,2.31684]
[1641741644077,0.02614748,3090.6,3090.4,1.61825]
[1641741644474,0.13819997,3091.3,3090.4,1.61825]
[1641741644475,0.02557906,3090.5,3090.4,1.61825]
[1641741644677,2.20376563,3091.4,3090.5,15.15]
[1641741644878,0.92133353,3091.4,3090.8,0.80919]
[1641741645075,0.48629362,3090.8,3090.6,0.809156]
[1641741645524,9.362e-05,3090.8,3090.7,18.0081753]
[1641741645727,0.92133353,3091.4,3090.8,15.15]
[1641741645929,14.77,3091.9,3091.3,15.16212538]
[1641741646127,14.77,3091.9,3091.3,15.35422538]
[1641741646330,0.1806,3091.9,3091.4,3.39522934]
[1641741646529,0.03,3092.7,3091.8,0.0125044]
[1641741646729,0.03,3092.7,3092.6,10.91578142]
[1641741647028,0.03,3092.7,3092.6,10.8781]
[1641741647229,0.9398482,3092.9,3092.7,13.0]
[1641741647427,0.9398482,3092.9,3092.7,13.467]
[1641741647626,0.9398482,3092.9,3092.8,15.15]
[1641741647826,12.32,3094.1,3093.4,0.80849]
[1641741648226,12.32,3094.1,3093.5,2.62822934]
[1641741648431,12.32,3094.1,3093.5,2.26116953]
[1641741648627,5.85442,3094.1,3093.5,1.27542]
[1641741648827,5.85442,3094.1,3093.5,2.8921]
[1641741649369,5.85442,3094.1,3093.7,1.61643]
[1641741649570,5.85442,3094.1,3093.5,4.0415709]
[1641741649770,5.85442,3094.1,3093.5,1.61668]
[1641741649970,5.85442,3094.1,3093.4,1.61669]
[1641741650172,5.85442,3094.1,3093.6,2.75535415]
[1641741650371,2.380434,3093.8,3093.6,2.75535415]
[1641741650572,5.85442,3094.1,3093.6,2.75535415]
[1641741650573,1.12215761,3094.0,3093.6,2.75535415]
[1641741650773,10.51705271,3093.7,3093.2,1.21186499]
[1641741651173,0.01648428,3093.6,3093.2,1.21186499]
[1641741651570,1.51015761,3094.0,3093.2,1.21186499]
[1641741651571,1.2114781,3093.5,3093.2,1.21186499]
[1641741651772,1.2114781,3093.5,3092.7,6.15991708]
[1641741651773,0.01591586,3093.5,3092.7,4.94805208]
[1641741651970,0.88724293,3094.1,3092.7,4.94805208]
[1641741651971,0.01534744,3093.4,3092.7,2.31982274]
[1641741652171,0.01534744,3093.4,3092.7,1.21186499]
[1641741652370,0.01477901,3093.3,3092.7,1.21186499]
[1641741652572,14.44217083,3094.0,3092.5,1.61703]
[1641741652771,14.44217083,3094.0,3092.8,0.00284211]
[1641741653020,14.44217083,3094.0,3092.6,0.00397896]
[1641741653021,12.50397897,3094.0,3092.6,0.00397896]
[1641741653220,2.69579924,3093.1,3092.7,0.00341054]
[1641741653420,2.69579924,3093.1,3092.5,1.61703]
[1641741653421,2.69579924,3093.1,3092.6,0.00397896]
[1641741653822,3.08379924,3093.1,3092.6,0.00397896]
[1641741654021,3.08379924,3093.1,3091.9,4.9081]
[1641741654022,3.08379924,3093.1,3092.2,0.00625266]
[1641741654421,3.08379924,3093.1,3092.0,0.0073895]
[1641741654422,0.3,3093.0,3092.0,0.0073895]
[1641741654621,0.388,3092.9,3092.0,0.0073895]
[1641741654822,9.6943637,3092.1,3092.0,0.0073895]
[1641741655022,2.5943637,3092.1,3092.0,0.0073895]
[1641741655223,2.5943637,3092.1,3091.6,0.0096632]
[1641741655924,51.13564354,3092.5,3091.6,0.0096632]
[1641741656127,2.29952405,3092.0,3091.6,0.0096632]
[1641741656326,2.29952405,3092.0,3091.1,0.01239057]
[1641741656526,0.00170527,3091.9,3091.1,0.01239057]
[1641741656785,0.00170527,3091.9,3091.2,0.00227369]
[1641741656976,0.00113685,3091.8,3091.2,0.00227369]
[1641741657173,2.19214643,3091.4,3091.2,0.00227369]
[1641741657374,2.19214643,3091.4,3090.8,0.00454738]
[1641741657572,0.388,3091.9,3090.9,6.4]
[1641741657775,1.20905468,3091.5,3090.8,0.00568423]
[1641741657974,1.20905468,3091.5,3091.0,0.00454739]
[1641741658175,1.20905468,3091.5,3090.7,0.00625266]
[1641741658374,1.52760063,3090.8,3090.7,0.00625266]
[1641741658784,2.71724155,3090.8,3090.7,0.00625266]
[1641741658977,0.16429506,3091.1,3090.4,0.00795793]
[1641741659176,0.16429506,3091.1,3090.3,0.00852635]
[1641741659675,0.16429506,3091.1,3090.1,0.0096632]
[1641741659676,1.25773871,3090.8,3090.1,0.0096632]
[1641741660179,1.1058968,3090.4,3090.1,0.0096632]
[1641741660641,0.388,3090.6,3090.1,0.0096632]
[1641741660930,1.25773871,3090.8,3090.1,0.0096632]
[1641741661731,0.388,3091.9,3090.7,1.2349634]
[1641741661931,3.82648918,3092.4,3090.7,1.2349634]
[1641741661932,2.68503018,3092.4,3090.7,1.2349634]
[1641741662132,0.388,3092.3,3090.8,0.00568423]
[1641741662340,0.39084212,3092.3,3090.8,0.00568423]
[1641741662732,1.27465992,3091.3,3090.8,0.00568423]
[1641741663532,0.10213357,3091.3,3090.8,0.00568423]
[1641741663734,2.68503018,3092.2,3090.8,0.00568423]
[1641741664185,0.00170527,3092.1,3090.8,0.00568423]
[1641741664479,0.00113685,3092.0,3090.8,0.00568423]
[1641741664684,1.38728046,3091.9,3091.4,1.01000441]
[1641741664884,1.94558227,3092.2,3091.1,1.14988408]
[1641741665080,1.94558227,3092.2,3091.4,0.2618]
[1641741665081,1.61762303,3091.5,3091.4,0.2618]
[1641741665480,0.00170527,3092.1,3091.4,0.2618]
[1641741665481,0.00341054,3092.1,3091.4,0.2618]
[1641741665882,0.00284212,3092.0,3091.4,0.2618]
[1641741666081,0.00284212,3092.0,3091.6,1.41450306]
[1641741666282,0.00227369,3091.9,3091.6,1.41450306]
[1641741666681,0.00170527,3091.8,3091.6,1.41450306]
[1641741667081,0.00113685,3091.7,3091.6,8.21450306]
[1641741667586,0.00682108,3091.7,3091.6,8.21450306]
[1641741667782,5.56806359,3093.5,3091.7,15.15]
[1641741667783,2.33051452,3093.5,3091.7,15.15]
[1641741668030,2.33051452,3093.5,3091.6,8.21450306]
[1641741668031,1.36438743,3092.7,3091.8,0.2517]
[1641741668226,1.37117629,3092.4,3091.8,0.00511581]
[1641741668427,1.75917629,3092.4,3091.9,0.00454739]
[1641741668630,1.75917629,3092.4,3091.2,0.00852635]
[1641741669130,1.18064927,3092.1,3091.3,1.12612523]
[1641741669329,1.18064927,3092.1,3091.2,1.62633635]
[1641741669527,1.29502226,3091.9,3091.4,0.0073895]
[1641741669727,1.29502226,3091.9,3091.3,0.00795793]
[1641741669928,1.29502226,3091.9,3091.1,0.00909477]
[1641741670729,1.68302226,3091.9,3091.1,0.00909477]
[1641741670927,1.4165479,3091.3,3091.2,2.0]
[1641741671127,2.98973629,3092.4,3092.3,2.72824699]
[1641741671327,1.37117629,3092.4,3092.3,2.72824699]
[1641741671528,1.37117629,3092.4,3092.3,2.73052068]
[1641741671529,1.75917629,3092.4,3092.3,2.73052068]
[1641741671781,11.32117629,3092.4,3092.3,0.78721972]
[1641741672178,4.04847101,3092.4,3092.3,0.78721972]
[1641741672376,4.43647101,3092.4,3092.3,0.78721972]
[1641741672977,11.28647101,3092.4,3092.3,0.78721972]
[1641741673777,4.43647101,3092.4,3092.3,0.78721972]
[1641741673977,19.83647101,3092.4,3092.3,0.78721972]
[1641741674382,4.73647101,3092.4,3092.3,0.78721972]
[1641741674778,5.24566101,3092.4,3092.3,0.78721972]
[1641741674978,5.24566101,3092.4,3092.3,2.78721972]
[1641741674979,12.49566101,3092.4,3092.3,2.78721972]
[1641741676620,13.09566101,3092.4,3092.3,2.78721972]
[1641741676821,12.79566101,3092.4,3092.3,2.78721972]
[1641741677221,12.49566101,3092.4,3092.3,2.78721972]
[1641741677424,12.79566101,3092.4,3092.3,2.78721972]
[1641741677620,17.10313774,3092.3,3091.2,2.0]
[1641741677823,0.80924,3091.9,3091.2,2.0]
[1641741678023,1.19735,3091.8,3091.3,0.00568424]
[1641741678422,21.19735,3091.8,3091.3,0.00568424]
[1641741678623,21.19735,3091.8,3091.3,2.76299353]
[1641741678624,47.88791788,3091.6,3091.3,2.76299353]
[1641741678823,0.388,3091.5,3091.3,2.76299353]
[1641741679025,0.388,3091.5,3091.4,0.00511581]